Workbook

Sheet 01岗
A1: 贵阳市不动产登记中心面试成绩及进入体检环节人员名单
A2: 序号 | B2: 姓名 | C2: 准考证号 | D2: 单位 | E2: 报考岗位及代码 | F2: 笔试成绩 | G2: 笔试成绩（百分制） | H2: 笔试成绩30% | I2: 专业测试成绩 | J2: 专业测试成绩40% | K2: 笔试、专业测试成绩 | L2: 面试成绩 | M2: 面试成绩30% | N2: 笔试、专业测试、面试成绩 | O2: 综合排名 | P2: 是否进入体检
A3: 1 | B3: 杨芳怡 | C3: 1152011501526 | D3: 贵阳市不动产登记中心 | E3: 20101013101 | F3: 221.50 | G3: =F3/3 -> 73.83 | H3: =G3*0.3 -> 22.15 | I3: 85.40 | J3: =I3*0.4 -> 34.16 | K3: =H3+J3 -> 56.31 | L3: 81.40 | M3: =L3*0.3 -> 24.42 | N3: =H3+J3+M3 -> 80.73 | O3: 1 | P3: 是
A4: 2 | B4: 何旋律 | C4: 1152011500202 | D4: 贵阳市不动产登记中心 | E4: 20101013101 | F4: 198.50 | G4: 66.17 | H4: 19.85 | I4: 79.95 | J4: 31.98 | K4: 51.83 | L4: 76.60 | M4: =L4*0.3 -> 22.98 | N4: =H4+J4+M4 -> 74.81 | O4: 2
A5: 3 | B5: 姚灿超 | C5: 1152011501404 | D5: 贵阳市不动产登记中心 | E5: 20101013101 | F5: 204.50 | G5: 68.17 | H5: 20.45 | I5: 75.20 | J5: 30.08 | K5: 50.53 | P5: 缺考

Sheet 02岗
A1: 贵阳市不动产登记中心面试成绩及进入体检环节人员名单
A2: 序号 | B2: 姓名 | C2: 准考证号 | D2: 单位 | E2: 报考岗位及代码 | F2: 笔试成绩 | G2: 笔试成绩（百分制） | H2: 笔试成绩30% | I2: 专业测试成绩 | J2: 专业测试成绩40% | K2: 笔试、专业测试成绩 | L2: 面试成绩 | M2: 面试成绩30% | N2: 笔试、专业测试、面试成绩 | O2: 综合排名 | P2: 是否进入体检
A3: 1 | B3: 唐裕婷 | C3: 1152011501026 | D3: 贵阳市不动产登记中心 | E3: 20101013102 | F3: 169.50 | G3: =F3/3 -> 56.50 | H3: =G3*0.3 -> 16.95 | I3: 82.20 | J3: =I3*0.4 -> 32.88 | K3: =H3+J3 -> 49.83 | L3: 80.00 | M3: =L3*0.3 -> 24.00 | N3: =H3+J3+M3 -> 73.83 | O3: 1 | P3: 是
A4: 2 | B4: 王绥炎 | C4: 1152011501214 | D4: 贵阳市不动产登记中心 | E4: 20101013102 | F4: 149.50 | G4: =F4/3 -> 49.83 | H4: =G4*0.3 -> 14.95 | I4: 76.65 | J4: =I4*0.4 -> 30.66 | K4: =H4+J4 -> 45.61 | L4: 78.20 | M4: =L4*0.3 -> 23.46 | N4: =H4+J4+M4 -> 69.07 | O4: 2

Sheet 03岗
A1: 贵阳市不动产登记中心面试成绩及进入体检环节人员名单
A2: 序号 | B2: 姓名 | C2: 准考证号 | D2: 单位 | E2: 报考岗位及代码 | F2: 笔试成绩 | G2: 笔试成绩（百分制） | H2: 笔试成绩30% | I2: 专业测试成绩 | J2: 专业测试成绩40% | K2: 笔试、专业测试成绩 | L2: 面试成绩 | M2: 面试成绩30% | N2: 笔试、专业测试、面试成绩 | O2: 综合排名 | P2: 是否进入体检
A3: 1 | B3: 燕江凯 | C3: 1152011501315 | D3: 贵阳市不动产登记中心 | E3: 20101013103 | F3: 185.00 | G3: =F3/3 -> 61.67 | H3: =G3*0.3 -> 18.50 | I3: 74.95 | J3: =I3*0.4 -> 29.98 | K3: =H3+J3 -> 48.48 | L3: 83.00 | M3: =L3*0.3 -> 24.90 | N3: =H3+J3+M3 -> 73.38 | O3: 1 | P3: 是

Sheet 04岗
A1: 贵阳市不动产登记中心面试成绩及进入体检环节人员名单
A2: 序号 | B2: 姓名 | C2: 准考证号 | D2: 单位 | E2: 报考岗位及代码 | F2: 笔试成绩 | G2: 笔试成绩（百分制） | H2: 笔试成绩30% | I2: 专业测试成绩 | J2: 专业测试成绩40% | K2: 笔试、专业测试成绩 | L2: 面试成绩 | M2: 面试成绩30% | N2: 笔试、专业测试、面试成绩 | O2: 综合排名 | P2: 是否进入体检
A3: 1 | B3: 李青芸 | C3: 1152011501709 | D3: 贵阳市不动产登记中心 | E3: 20101013104 | F3: 202.00 | G3: =F3/3 -> 67.33 | H3: =G3*0.3 -> 20.20 | I3: 86.65 | J3: =I3*0.4 -> 34.66 | K3: =H3+J3 -> 54.86 | L3: 80.40 | M3: =L3*0.3 -> 24.12 | N3: =H3+J3+M3 -> 78.98 | O3: 1 | P3: 是
A4: 2 | B4: 宋欣儒 | C4: 1152011501204 | D4: 贵阳市不动产登记中心 | E4: 20101013104 | F4: 210.00 | G4: =F4/3 -> 70.00 | H4: =G4*0.3 -> 21.00 | I4: 70.85 | J4: =I4*0.4 -> 28.34 | K4: =H4+J4 -> 49.34 | L4: 82.00 | M4: =L4*0.3 -> 24.60 | N4: =H4+J4+M4 -> 73.94 | O4: 2

Sheet 05岗
A1: 贵阳市不动产登记中心面试成绩及进入体检环节人员名单
A2: 序号 | B2: 姓名 | C2: 准考证号 | D2: 单位 | E2: 报考岗位及代码 | F2: 笔试成绩 | G2: 笔试成绩（百分制） | H2: 笔试成绩60% | I2: 面试成绩 | J2: 面试成绩40% | K2: 笔试、面试成绩 | L2: 综合排名 | M2: 是否进入体检
A3: 1 | B3: 杨影影 | C3: 1152011500204 | D3: 贵阳市不动产登记中心 | E3: 20101013105 | F3: 214.00 | G3: =F3/3 -> 71.33 | H3: =G3*0.6 -> 42.80 | I3: 80.00 | J3: =I3*0.4 -> 32.00 | K3: =H3+J3 -> 74.80 | L3: 1 | M3: 是
A4: 2 | B4: 吴剑辉 | C4: 1152011502328 | D4: 贵阳市不动产登记中心 | E4: 20101013105 | F4: 192.00 | G4: 64.00 | H4: 38.40 | I4: 79.80 | J4: 31.92 | K4: 70.32 | L4: 2
A5: 3 | B5: 周鑫鑫 | C5: 1152011500621 | D5: 贵阳市不动产登记中心 | E5: 20101013105 | F5: 178.50 | G5: 59.50 | H5: 35.70 | I5: 73.20 | J5: 29.28 | K5: 64.98 | L5: 3
